bitfinex/quotes_BTCUSD_20250223
["timestamp","ask_amount","ask_price","bid_price","bid_amount"]
[1740307778899,0.00731247,96286.0,96285.0,0.3454672]
[1740307779050,0.0017004,96286.0,96285.0,0.3454672]
[1740307779258,0.00731247,96286.0,96285.0,0.3454672]
[1740307784321,0.16309747,96286.0,96285.0,0.3454672]
[1740307785445,0.16309747,96286.0,96285.0,0.3444672]
[1740307798479,0.16309747,96286.0,96285.0,0.3234004]
[1740307803620,0.16409747,96286.0,96285.0,0.3234004]
[1740307803994,0.16609747,96286.0,96285.0,0.3234004]
[1740307817692,0.18063832,96286.0,96285.0,0.3234004]
[1740307823028,0.18063832,96286.0,96285.0,0.0008502]
[1740307828630,0.18063832,96286.0,96285.0,0.02214192]
[1740307832227,0.18063832,96286.0,96285.0,0.0008502]
[1740307837740,0.16609747,96286.0,96285.0,0.0008502]
[1740307841237,0.18063832,96286.0,96285.0,0.0008502]
[1740307864506,0.01031247,96286.0,96285.0,0.0008502]
[1740307864909,0.16609747,96286.0,96285.0,0.0008502]
[1740307866624,0.16609747,96286.0,96285.0,0.02137372]
[1740307870508,0.01031247,96286.0,96285.0,0.02137372]
[1740307872668,0.16609747,96286.0,96285.0,0.02137372]
[1740307880338,0.16614816,96286.0,96285.0,0.02137372]
[1740307888977,0.16572194,96286.0,96285.0,0.02137372]
[1740307889583,0.16572194,96286.0,96285.0,0.0008502]
[1740307890212,0.18026279,96286.0,96285.0,0.0008502]
[1740307890624,0.19107589,96286.0,96285.0,0.0008502]
[1740307891234,0.18929276,96286.0,96285.0,0.0008502]
[1740307894664,0.19099316,96286.0,96285.0,0.0008502]
[1740307911872,0.18589004,96286.0,96285.0,0.0008502]
[1740307918503,0.181826,96286.0,96285.0,0.0008502]
[1740307936874,0.43447169,96286.0,96285.0,0.0008502]
[1740307939114,0.44203169,96286.0,96285.0,0.0008502]
[1740307942318,0.43447169,96286.0,96285.0,0.0008502]
[1740307942851,0.44203169,96286.0,96285.0,0.0008502]
[1740307943774,0.43447169,96286.0,96285.0,0.0008502]
[1740307943959,0.44203169,96286.0,96285.0,0.0008502]
[1740307948974,0.44703169,96286.0,96285.0,0.0008502]
[1740307949135,0.45103169,96286.0,96285.0,0.0008502]
[1740307950810,0.155808,96272.0,96271.0,0.0004]
[1740307955942,0.16349374,96272.0,96271.0,0.0004]
[1740307956149,0.16349374,96272.0,96271.0,0.02103891]
[1740307963938,0.16349374,96272.0,96271.0,0.02188911]
[1740307965483,0.32803459,96272.0,96271.0,0.0012502]
[1740307965699,0.33410636,96272.0,96271.0,0.0012502]
[1740307966312,0.43675205,96272.0,96271.0,0.0012502]
[1740307967512,0.44531205,96272.0,96271.0,0.0012502]
[1740307967723,0.44431205,96272.0,96271.0,0.0012502]
[1740307967926,0.44531205,96272.0,96271.0,0.0012502]
[1740307968126,0.44831205,96272.0,96271.0,0.0012502]
[1740307968477,0.44731205,96272.0,96271.0,0.0012502]
[1740307968654,0.45031205,96272.0,96271.0,0.0012502]
[1740307969068,0.34010636,96272.0,96271.0,0.0012502]
[1740307969787,0.155826,96261.0,96253.0,0.155839]
[1740307969993,0.155826,96261.0,96250.0,0.00414048]
[1740307969994,0.31665067,96260.0,96251.0,0.155841]
[1740307970200,0.155829,96259.0,96252.0,0.3225502]
[1740307970399,0.10888067,96260.0,96252.0,0.3225502]
[1740307970701,0.00606219,96258.0,96257.0,0.155832]
[1740307970998,0.00606219,96258.0,96252.0,0.3225502]
[1740307970999,0.00610537,96258.0,96256.0,0.155833]
[1740307971199,4.318e-05,96258.0,96253.0,0.208785]
[1740307971415,0.01041555,96258.0,96254.0,0.155836]
[1740307971618,4.318e-05,96258.0,96253.0,0.001]
[1740307971824,0.0009425,96257.0,96253.0,0.001]
[1740307972033,0.00518723,96257.0,96253.0,0.001]
[1740307972221,0.00424473,96257.0,96256.0,0.001]
[1740307972430,4.318e-05,96258.0,96257.0,0.002]
[1740307973879,0.01035506,96258.0,96255.0,0.284135]
[1740307974708,0.01035506,96258.0,96256.0,0.3225502]
[1740307976601,0.01035506,96258.0,96256.0,0.3235502]
[1740307977219,0.01035506,96258.0,96256.0,0.3255502]
[1740307978475,0.01035506,96258.0,96256.0,0.1255502]
[1740307979300,0.01035506,96258.0,96257.0,0.155832]
[1740307980014,4.318e-05,96258.0,96257.0,0.155832]
[1740307980220,4.318e-05,96258.0,96257.0,0.38462423]
[1740307980331,4.318e-05,96258.0,96257.0,0.38537769]
[1740307981173,4.318e-05,96258.0,96257.0,0.38437769]
[1740307981562,4.318e-05,96258.0,96257.0,0.38337769]
[1740307981767,4.318e-05,96258.0,96257.0,0.38737769]
[1740307981945,0.00104318,96258.0,96257.0,0.39337769]
[1740307982585,0.00104318,96258.0,96257.0,0.38937769]
[1740307982802,0.00104318,96258.0,96257.0,0.39337769]
[1740307983576,4.318e-05,96258.0,96257.0,1.25807769]
[1740307984715,4.318e-05,96258.0,96257.0,1.26507769]
[1740307984901,0.00104318,96258.0,96257.0,1.26507769]
[1740307985110,0.00104318,96258.0,96257.0,1.26007769]
[1740307985316,0.00204318,96258.0,96257.0,1.26707769]
[1740307986065,0.00204318,96258.0,96257.0,1.06707769]
[1740307986684,0.00204318,96258.0,96257.0,1.37290969]
[1740307987314,0.00374398,96258.0,96257.0,1.37290969]
[1740307987935,0.00274398,96258.0,96257.0,1.36590969]
[1740307988075,0.00274398,96258.0,96257.0,1.36690969]
[1740307988275,0.00374398,96258.0,96257.0,1.37390969]
[1740307988520,0.00374398,96258.0,96257.0,1.3944426]
[1740307989377,0.00374398,96258.0,96257.0,1.3945626]
[1740307989579,0.00374398,96258.0,96257.0,1.4145626]
[1740307993429,0.00374398,96258.0,96257.0,1.31720829]
[1740307996387,0.00374398,96258.0,96257.0,1.44680829]
[1740307999453,0.00374398,96258.0,96257.0,1.44765869]
[1740308008601,0.00374398,96258.0,96257.0,1.46710953]
[1740308012331,0.00374398,96258.0,96257.0,1.10970953]
[1740308012864,0.00374398,96258.0,96257.0,0.96010953]
[1740308016260,0.00374398,96258.0,96257.0,1.28380953]
[1740308042726,0.00374398,96258.0,96257.0,1.30380953]
[1740308044302,0.00374398,96258.0,96257.0,1.19673184]
[1740308045461,0.00374398,96258.0,96257.0,1.19260907]
[1740308052300,0.00374398,96258.0,96257.0,1.19248907]
[1740308053379,0.00374398,96258.0,96257.0,1.23958907]
[1740308055934,0.00374398,96258.0,96257.0,1.27075866]
[1740308056255,0.09446898,96258.0,96257.0,1.27075866]
[1740308058629,0.09446898,96258.0,96257.0,1.28529951]
[1740308058630,9.8e-07,96258.0,96257.0,1.28529951]
[1740308059048,9.8e-07,96258.0,96257.0,1.25412992]
[1740308059247,9.8e-07,96258.0,96257.0,1.24712992]
[1740308059452,9.8e-07,96258.0,96257.0,1.32272992]
[1740308059680,9.8e-07,96258.0,96257.0,1.32972992]
[1740308060198,9.8e-07,96258.0,96257.0,1.33672992]
[1740308060432,9.8e-07,96258.0,96257.0,1.32972992]
[1740308060617,9.8e-07,96258.0,96257.0,1.33672992]
[1740308067532,3.8e-07,96258.0,96257.0,1.33672992]
[1740308067731,3.8e-07,96258.0,96257.0,1.31619701]
[1740308068782,3.8e-07,96258.0,96257.0,1.34863947]
[1740308068926,3.8e-07,96258.0,96257.0,1.36863947]
[1740308071832,3.8e-07,96258.0,96257.0,1.36163947]
[1740308072039,3.8e-07,96258.0,96257.0,1.36863947]
[1740308072517,3.8e-07,96258.0,96257.0,1.36163947]
[1740308072721,3.8e-07,96258.0,96257.0,1.36863947]
[1740308073478,3.8e-07,96258.0,96257.0,1.36163947]
[1740308073827,3.8e-07,96258.0,96257.0,1.36863947]
[1740308074558,3.8e-07,96258.0,96257.0,1.39978805]
[1740308077179,3.8e-07,96258.0,96257.0,1.42013593]
[1740308078559,3.8e-07,96258.0,96257.0,1.38898735]
[1740308081080,3.8e-07,96258.0,96257.0,1.42019535]
[1740308083786,3.8e-07,96258.0,96257.0,1.52969535]
[1740308087981,0.0785,96282.0,96281.0,0.02]
[1740308087982,7.8e-07,96282.0,96281.0,0.02]
[1740308088145,4.4e-05,96282.0,96281.0,1.14298469]
[1740308088493,4.4e-05,96282.0,96281.0,1.14173869]
[1740308088806,4.4e-05,96282.0,96281.0,1.16118953]
[1740308089010,4.4e-05,96282.0,96281.0,1.16818953]
[1740308090166,4.4e-05,96282.0,96281.0,1.17518953]
[1740308090484,4.4e-05,96282.0,96281.0,1.16118953]
[1740308090669,4.4e-05,96282.0,96281.0,1.17518953]
[1740308091080,4.4e-05,96282.0,96281.0,1.16818953]
[1740308091563,4.4e-05,96282.0,96281.0,1.17518953]
[1740308092978,4.4e-05,96282.0,96281.0,1.18270953]
[1740308095039,4.4e-05,96282.0,96281.0,1.19068491]
[1740308096603,4.4e-05,96282.0,96281.0,1.21163849]
[1740308100426,4.322e-05,96282.0,96281.0,1.21163849]
[1740308101730,0.00174322,96282.0,96281.0,1.22617934]
[1740308110971,2.2e-07,96282.0,96281.0,1.22617934]
[1740308111280,2.2e-07,96282.0,96281.0,1.25866108]
[1740308112329,2.2e-07,96282.0,96281.0,1.25166108]
[1740308113389,2.2e-07,96282.0,96281.0,1.25251108]
[1740308113591,2.2e-07,96282.0,96281.0,1.25951108]
[1740308114025,2.2e-07,96282.0,96281.0,1.25251108]
[1740308114356,2.2e-07,96282.0,96281.0,1.25951108]
[1740308121890,2.2e-07,96282.0,96281.0,1.25747342]
[1740308134784,2.2e-07,96282.0,96281.0,1.24995342]
[1740308135082,2.2e-07,96282.0,96281.0,1.25747342]
[1740308137439,2.2e-07,96282.0,96281.0,1.28865785]
[1740308140886,2.2e-07,96282.0,96281.0,1.36395785]
[1740308141061,2.2e-07,96282.0,96281.0,1.28865785]
[1740308154451,2.2e-07,96282.0,96281.0,1.28113785]
[1740308154668,2.2e-07,96282.0,96281.0,1.28865785]
[1740308164466,2.2e-07,96282.0,96281.0,1.28113785]
[1740308164826,2.2e-07,96282.0,96281.0,1.28865785]
[1740308166678,2.2e-07,96282.0,96281.0,1.25747342]
[1740308169353,2.2e-07,96282.0,96281.0,1.28866105]
[1740308172774,0.0017004,96286.0,96281.0,1.28866105]
[1740308172978,0.00115251,96293.0,96292.0,0.155776]
[1740308173197,0.00115251,96293.0,96292.0,0.40842169]
[1740308174934,0.00115251,96293.0,96292.0,0.45906016]
[1740308175351,0.00115251,96293.0,96292.0,0.46606016]
[1740308175554,0.00115251,96293.0,96292.0,0.47306016]
[1740308176675,0.00115251,96293.0,96292.0,1.18636016]
[1740308178198,0.00115251,96293.0,96292.0,1.19688946]
[1740308180258,0.02955251,96300.0,96299.0,0.155764]
[1740308180463,0.02955251,96300.0,96299.0,0.25840969]
[1740308181477,0.02955251,96300.0,96299.0,0.31504816]
[1740308181886,0.02955251,96300.0,96299.0,0.32004816]
[1740308182713,0.02955251,96300.0,96299.0,0.64374816]
[1740308183346,0.02955251,96300.0,96299.0,0.73730561]
[1740308184695,0.03125231,96300.0,96299.0,0.73730561]
[1740308186542,0.03125231,96300.0,96299.0,0.75825745]
[1740308188321,0.03125231,96300.0,96299.0,0.6647]
[1740308191145,0.03125231,96300.0,96299.0,0.66407754]
[1740308193766,0.03129552,96300.0,96299.0,0.66407754]
[1740308196295,0.03129552,96300.0,96299.0,0.66492734]
[1740308204244,0.03129552,96300.0,96299.0,0.61428887]
[1740308204807,0.03129552,96300.0,96299.0,0.66498428]
[1740308209048,0.03129552,96300.0,96299.0,0.6337871]
[1740308218481,0.00174301,96300.0,96299.0,0.6337871]
[1740308219159,0.00174301,96300.0,96299.0,0.6277871]
[1740308219360,0.00174301,96300.0,96299.0,0.47264556]
[1740308219562,0.05104301,96300.0,96299.0,0.37099987]
[1740308219987,0.06152409,96300.0,96299.0,0.36899987]
[1740308220371,0.0688712,96300.0,96299.0,0.36899987]
[1740308221384,0.0688712,96300.0,96299.0,0.37099987]
[1740308221617,0.0688712,96300.0,96299.0,0.37299987]
[1740308221809,0.0688712,96300.0,96299.0,0.36699987]
[1740308222112,0.0688712,96300.0,96299.0,0.36999987]
[1740308222685,0.2246342,96300.0,96299.0,0.36999987]
[1740308223610,0.2246342,96300.0,96299.0,0.35050164]
[1740308232630,0.2146342,96300.0,96299.0,0.35050164]
[1740308242955,0.2163346,96300.0,96299.0,0.35050164]
[1740308243378,0.2103346,96300.0,96299.0,0.35050164]
[1740308244708,0.0545716,96300.0,96299.0,0.35050164]
[1740308248439,0.04722449,96300.0,96299.0,0.35050164]
[1740308248586,0.05297718,96300.0,96299.0,0.35050164]
[1740308251490,0.01793417,96300.0,96299.0,0.35050164]
[1740308252525,0.01218148,96300.0,96299.0,0.35050164]
[1740308252729,0.01793417,96300.0,96299.0,0.35050164]
[1740308253413,0.01218148,96300.0,96299.0,0.35050164]
[1740308254292,0.01793417,96300.0,96299.0,0.35050164]
[1740308256669,0.00745309,96300.0,96299.0,0.50626564]
[1740308256877,0.00745309,96300.0,96299.0,0.35050164]
[1740308257997,0.0017004,96300.0,96299.0,0.35050164]
[1740308258204,0.0017004,96300.0,96299.0,0.60891133]
[1740308259059,0.0017004,96300.0,96299.0,0.60591133]
[1740308259274,0.0017004,96300.0,96299.0,0.60891133]
[1740308259507,0.0017004,96300.0,96299.0,0.60691133]
[1740308259687,0.0017004,96300.0,96299.0,0.60391133]
[1740308259900,0.0017004,96300.0,96299.0,0.60891133]
[1740308260222,0.0017004,96300.0,96299.0,0.61491133]
[1740308271111,0.0017004,96300.0,96299.0,0.60891133]
[1740308271310,0.0017004,96300.0,96299.0,0.61591133]
[1740308271506,0.0017004,96300.0,96299.0,0.61091133]
[1740308271937,0.0017004,96300.0,96299.0,0.61691133]
[1740308274263,0.0017004,96300.0,96299.0,0.76691133]
[1740308279377,0.0017004,96300.0,96299.0,0.75991133]
[1740308279579,0.0017004,96300.0,96299.0,0.75391133]
[1740308279990,0.0017004,96300.0,96299.0,0.76091133]
[1740308280573,0.0017004,96300.0,96299.0,0.76791133]
[1740308281161,0.0017004,96300.0,96299.0,0.76091133]
[1740308281374,0.0017004,96300.0,96299.0,0.76791133]
[1740308283180,0.0017004,96300.0,96299.0,0.78245218]
[1740308283339,0.0017004,96300.0,96299.0,0.85945218]
[1740308283542,0.0017004,96300.0,96299.0,1.24905218]
[1740308284125,0.0017004,96300.0,96299.0,1.29785218]
[1740308284529,0.0017004,96300.0,96299.0,1.31581452]
[1740308284848,0.0017004,96300.0,96299.0,1.29785218]
[1740308285053,0.0017004,96300.0,96299.0,1.31581452]
[1740308287576,0.0017004,96300.0,96299.0,1.32380617]
[1740308296302,0.0017004,96300.0,96299.0,1.35622798]
[1740308296471,0.0017004,96300.0,96299.0,1.32380617]
[1740308296716,0.0017004,96300.0,96299.0,1.35622686]
[1740308299286,0.0017004,96300.0,96299.0,1.34922686]
[1740308299869,0.0017004,96300.0,96299.0,1.35622686]
[1740308323579,0.0017004,96300.0,96299.0,1.30742686]
[1740308341261,0.0410004,96320.0,96319.0,0.155732]
[1740308341459,0.04143257,96320.0,96319.0,0.58207769]
[1740308341664,0.04724161,96320.0,96319.0,0.58207769]
[1740308341935,0.04143257,96320.0,96319.0,0.58207769]
[1740308342535,0.04143257,96320.0,96319.0,0.58707769]
[1740308342837,0.04143257,96320.0,96319.0,0.59007769]
[1740308344063,0.04143257,96320.0,96319.0,0.58207769]
[1740308344465,0.04143257,96320.0,96319.0,0.58607769]
[1740308344623,0.04313257,96320.0,96319.0,0.58607769]
[1740308344861,0.04313257,96320.0,96319.0,0.59207769]
[1740308345569,0.04304066,96320.0,96319.0,0.59207769]
[1740308345733,0.04304066,96320.0,96319.0,0.58607769]
[1740308345931,0.04304066,96320.0,96319.0,0.60672102]
[1740308346136,0.04304066,96320.0,96319.0,0.60272102]
[1740308347176,0.04304066,96320.0,96319.0,0.60872102]
[1740308347624,0.04304066,96320.0,96319.0,0.60672102]
[1740308347808,0.04304066,96320.0,96319.0,0.60272102]
[1740308348148,0.04304066,96320.0,96319.0,0.61472102]
[1740308356425,0.00213217,96320.0,96319.0,0.76472102]
[1740308357445,0.00213217,96320.0,96319.0,0.75972102]
[1740308357643,0.00213217,96320.0,96319.0,0.76572102]
[1740308357847,0.00213217,96320.0,96319.0,0.75872102]
[1740308358417,0.00213217,96320.0,96319.0,0.76572102]
[1740308365310,0.00213217,96320.0,96319.0,0.74507769]
[1740308369554,0.00213217,96320.0,96319.0,0.74592789]
[1740308370189,0.00213217,96320.0,96319.0,0.77839802]
[1740308370618,0.00213217,96320.0,96319.0,0.77139802]
[1740308370946,0.00213217,96320.0,96319.0,0.77839802]
[1740308371722,0.00213217,96320.0,96319.0,0.77239802]
[1740308371953,0.00213217,96320.0,96319.0,0.77939802]
[1740308372503,0.00213217,96320.0,96319.0,0.77239802]
[1740308372973,0.00213217,96320.0,96319.0,0.77939802]
[1740308374279,0.00213217,96320.0,96319.0,0.74692789]
[1740308374576,0.00213217,96320.0,96319.0,0.77938571]
[1740308375356,0.00213217,96320.0,96319.0,0.74692789]
[1740308384796,0.00213217,96320.0,96319.0,0.77937956]
[1740308395417,1.7e-07,96320.0,96319.0,0.85447956]
[1740308395784,1.7e-07,96320.0,96319.0,0.87602041]
[1740308396949,1.7e-07,96320.0,96319.0,0.86202041]
[1740308397158,1.7e-07,96320.0,96319.0,0.86902041]
[1740308397365,1.7e-07,96320.0,96319.0,0.87602041]
[1740308397543,1.7e-07,96320.0,96319.0,0.86902041]
[1740308398180,1.7e-07,96320.0,96319.0,0.87602041]
[1740308398990,1.7e-07,96320.0,96319.0,0.86902041]
[1740308399574,1.7e-07,96320.0,96319.0,1.25862041]
[1740308399997,1.7e-07,96320.0,96319.0,1.25162041]
[1740308400363,1.7e-07,96320.0,96319.0,1.26562041]
[1740308400530,1.7e-07,96320.0,96319.0,1.25862041]
[1740308401372,1.7e-07,96320.0,96319.0,1.26562041]
[1740308404804,4e-07,96328.0,96327.0,0.17025985]
[1740308404982,9.009e-05,96328.0,96327.0,0.27290554]
[1740308405182,9.009e-05,96328.0,96327.0,0.25836469]
[1740308406000,0.08099009,96328.0,96327.0,0.25836469]
[1740308407111,0.08099009,96328.0,96327.0,0.26536469]
[1740308408171,0.08099009,96328.0,96327.0,0.27236469]
[1740308408368,0.08099009,96328.0,96327.0,0.59606469]
[1740308411203,0.08099009,96328.0,96327.0,0.6172575]
[1740308412639,0.08099009,96328.0,96327.0,0.4615385]
[1740308416486,0.08302775,96328.0,96327.0,0.4615385]
[1740308417714,0.0889433,96328.0,96327.0,0.4545385]
[1740308417956,0.0889433,96328.0,96327.0,0.4615385]
[1740308418085,0.08302775,96328.0,96327.0,0.4615385]
[1740308418287,0.08302775,96328.0,96327.0,0.35189281]
[1740308418511,0.088941,96328.0,96327.0,0.34489281]
[1740308418715,0.088941,96328.0,96327.0,0.35189281]
[1740308419037,0.088941,96328.0,96327.0,0.35689281]
[1740308419248,0.088941,96328.0,96327.0,0.35189281]
[1740308419585,0.088941,96328.0,96327.0,0.35689281]
[1740308419793,0.088941,96328.0,96327.0,0.03319281]
[1740308420000,0.136041,96328.0,96327.0,0.03319281]
[1740308420630,0.136041,96328.0,96327.0,0.02619281]
[1740308421041,0.136041,96328.0,96327.0,0.03119281]
[1740308421446,0.136041,96328.0,96327.0,0.02619281]
[1740308421863,0.136041,96328.0,96327.0,0.02819281]
[1740308422273,0.136041,96328.0,96327.0,0.02319281]
[1740308422471,0.136041,96328.0,96327.0,0.02419281]
[1740308423546,0.136041,96328.0,96327.0,0.02219281]
[1740308423751,0.136041,96328.0,96327.0,0.02319281]
[1740308424416,0.136041,96328.0,96327.0,0.02219281]
[1740308424620,0.136041,96328.0,96327.0,0.02319281]
[1740308424994,0.13588528,96328.0,96327.0,0.02219281]
[1740308425432,0.13588528,96328.0,96327.0,0.02319281]
[1740308425962,0.13588528,96328.0,96327.0,0.02219281]
[1740308426589,0.13588528,96328.0,96327.0,0.02119281]
[1740308426832,0.13588528,96328.0,96327.0,0.001]
[1740308427279,0.00795091,96328.0,96307.0,0.09348071]
[1740308427484,0.0488,96326.0,96307.0,0.09348071]
[1740308427686,0.0488,96326.0,96301.0,0.3237]
[1740308427687,0.00203766,96320.0,96305.0,0.09348071]
[1740308427915,0.05083766,96320.0,96305.0,0.09348071]
[1740308428104,0.13680482,96320.0,96305.0,0.09348071]
[1740308429765,0.13680482,96320.0,96319.0,0.0018502]
[1740308429968,0.28680482,96320.0,96319.0,0.0018502]
[1740308430442,0.28680482,96320.0,96319.0,0.0008502]
[1740308434314,0.28680482,96320.0,96319.0,0.02180895]
[1740308437690,0.28680482,96320.0,96319.0,0.0008502]
[1740308440942,0.29766234,96320.0,96319.0,0.0008502]
[1740308447994,0.30308448,96320.0,96319.0,0.0008502]
[1740308457936,0.82038133,96320.0,96319.0,0.0008502]
[1740308458690,0.82786133,96320.0,96319.0,0.0008502]
[1740308458891,0.82038133,96320.0,96319.0,0.0008502]
[1740308459069,0.82786133,96320.0,96319.0,0.0008502]
[1740308459851,0.77745102,96320.0,96319.0,0.0008502]
[1740308463087,1.47745102,96320.0,96319.0,0.0008502]
[1740308465894,0.00203766,96300.0,96299.0,0.0008498]
[1740308466080,0.00780568,96300.0,96299.0,0.0008498]
[1740308466532,0.0186632,96300.0,96299.0,0.0008498]
[1740308467531,0.0186632,96300.0,96299.0,0.0028498]
[1740308467807,0.01289518,96300.0,96299.0,0.0028498]
[1740308467981,0.01289518,96300.0,96299.0,0.0038498]
[1740308468640,0.01289518,96300.0,96299.0,0.0008498]
[1740308468845,0.01289518,96300.0,96299.0,0.0018498]
[1740308470136,0.01289518,96300.0,96299.0,0.0008498]
[1740308470584,0.02313192,96300.0,96299.0,0.0018498]
[1740308470824,0.02888131,96300.0,96299.0,0.0018498]
[1740308470961,0.02888131,96300.0,96299.0,0.0008498]
[1740308471324,0.02888131,96300.0,96299.0,0.0018498]
[1740308471682,0.02888131,96300.0,96299.0,0.0008498]
[1740308472052,0.02888131,96300.0,96299.0,0.0018498]
[1740308473971,0.02888131,96300.0,96299.0,0.0008498]
[1740308474219,0.02888131,96300.0,96299.0,0.0018498]
[1740308478998,0.01864457,96300.0,96299.0,0.0018498]
[1740308479192,0.00778705,96300.0,96299.0,0.0018498]
[1740308479686,0.00203766,96300.0,96299.0,0.0018498]
[1740308479999,0.00203766,96300.0,96299.0,0.0008498]
[1740308480340,0.00203766,96300.0,96299.0,0.0018498]
[1740308480758,0.00203766,96300.0,96299.0,0.0008498]
[1740308480974,0.00203766,96300.0,96299.0,0.0018498]
[1740308481712,0.00203766,96300.0,96299.0,0.0008498]
[1740308481919,0.00203766,96300.0,96299.0,0.0018498]
[1740308482556,0.00203766,96300.0,96299.0,0.0827498]
[1740308483304,0.00203766,96300.0,96299.0,0.0817498]
[1740308483725,0.00203766,96300.0,96299.0,0.0827498]
[1740308484051,0.00203766,96300.0,96299.0,0.0817498]
[1740308484407,0.00203766,96300.0,96299.0,0.0837498]
[1740308485659,0.00203766,96300.0,96299.0,0.0827498]
[1740308486102,0.00203766,96300.0,96299.0,0.0837498]
[1740308486422,0.00203766,96300.0,96299.0,0.0827498]
[1740308487486,0.00203766,96300.0,96299.0,0.0847498]
[1740308487708,0.00203766,96300.0,96299.0,0.0837498]
[1740308488006,0.00203766,96300.0,96299.0,0.0827498]
[1740308488419,0.00203766,96300.0,96299.0,0.0847498]
[1740308488736,0.00203766,96300.0,96299.0,0.0837498]
[1740308489293,0.00203766,96300.0,96299.0,0.0847498]
[1740308491328,0.00203766,96300.0,96299.0,0.0817498]
[1740308491703,0.00203766,96300.0,96299.0,0.0847498]
[1740308492118,0.00203766,96300.0,96299.0,0.18739549]
[1740308492949,0.00203766,96300.0,96299.0,0.18539549]
[1740308493178,0.00203766,96302.0,96300.0,0.0804]
[1740308493405,0.00203766,96302.0,96301.0,0.10264569]
[1740308493580,0.00203766,96302.0,96301.0,0.18304569]
[1740308493788,0.00203766,96302.0,96301.0,0.22804569]
[1740308494497,0.0017004,96319.0,96301.0,0.22804569]
[1740308494498,0.00203766,96309.0,96302.0,0.0804]
[1740308494717,0.00203766,96305.0,96303.0,0.10264569]
[1740308494922,0.00203766,96305.0,96304.0,0.0804]
[1740308495117,0.00203766,96305.0,96304.0,0.18304569]
[1740308497262,0.00203766,96305.0,96304.0,0.19004569]
[1740308499641,0.00203766,96309.0,96304.0,0.19004569]
[1740308499831,0.00203766,96309.0,96305.0,0.10264569]
[1740308500618,0.00203766,96310.0,96305.0,0.10264569]
[1740308500819,0.0017004,96319.0,96305.0,0.10264569]
[1740308500820,0.00203766,96306.0,96305.0,0.18344569]
[1740308502594,0.00203766,96306.0,96305.0,0.18644569]
[1740308502798,0.00203766,96310.0,96305.0,0.18644569]
[1740308503003,0.0017004,96319.0,96306.0,0.0808]
[1740308503229,0.00203766,96314.0,96308.0,0.0808]
[1740308503429,0.00203766,96314.0,96310.0,0.0808]
[1740308503648,0.00203766,96314.0,96311.0,0.10264569]
[1740308504068,0.0017004,96319.0,96311.0,0.10264569]
[1740308504069,0.00203766,96316.0,96311.0,0.10264569]
[1740308505404,0.00203766,96316.0,96311.0,0.10364569]
[1740308506071,0.00203766,96316.0,96311.0,0.10564569]
[1740308506496,0.00203766,96316.0,96311.0,0.10364569]
[1740308506703,0.00203766,96316.0,96311.0,0.10564569]
[1740308512211,0.00203766,96316.0,96311.0,0.10649589]
[1740308516029,0.00203766,96316.0,96311.0,0.10449589]
[1740308516320,0.00203766,96316.0,96311.0,0.10549589]
[1740308516518,0.00203766,96316.0,96311.0,0.10649589]
[1740308517753,0.00203766,96316.0,96311.0,0.10549589]
[1740308517955,0.00203766,96316.0,96311.0,0.10349589]
[1740308518217,0.00203766,96316.0,96311.0,0.10449589]
[1740308518424,0.00203766,96316.0,96311.0,0.10649589]
[1740308518799,0.00203766,96316.0,96311.0,0.10449589]
[1740308518957,0.00203766,96316.0,96311.0,0.10649589]
[1740308520275,0.00203766,96316.0,96311.0,0.10549589]
[1740308520705,0.00203766,96316.0,96311.0,0.10849589]
[1740308521450,0.00203766,96316.0,96311.0,0.10649589]
[1740308521674,0.00203766,96316.0,96311.0,0.10949589]
[1740308522100,0.00203766,96316.0,96311.0,0.10649589]
[1740308522299,0.00203766,96316.0,96311.0,0.11049589]
[1740308542612,0.00203766,96316.0,96311.0,0.2039766]
[1740308544525,0.00203766,96316.0,96312.0,0.09348071]
[1740308544757,0.00203766,96316.0,96313.0,0.10264569]
[1740308546580,0.00203766,96316.0,96313.0,0.1961264]
[1740308546881,0.00203766,96316.0,96313.0,0.1991264]
[1740308547583,0.00203766,96316.0,96313.0,0.2031264]
[1740308548431,0.00203766,96316.0,96314.0,0.09348071]
[1740308548657,0.00203766,96316.0,96315.0,0.10264569]
[1740308549742,0.00203766,96316.0,96315.0,0.10564569]
[1740308551140,0.00203766,96316.0,96315.0,0.10964569]
[1740308558066,0.00203766,96316.0,96315.0,0.13109574]
[1740308573366,0.00203766,96316.0,96315.0,0.1414027]
[1740308575620,0.00203766,96316.0,96315.0,0.13109574]
[1740308578259,0.0017004,96319.0,96315.0,0.13109574]
[1740308578411,0.0017004,96319.0,96315.0,0.14159442]
[1740308578613,0.0017004,96319.0,96315.0,0.12099447]
[1740308579016,0.0017004,96319.0,96315.0,0.11799447]
[1740308579219,0.0017004,96319.0,96315.0,0.11399447]
[1740308579417,0.0017004,96319.0,96315.0,0.11599447]
[1740308579739,0.0017004,96319.0,96315.0,0.11899447]
[1740308580924,0.0017004,96319.0,96315.0,0.10849579]
[1740308581922,0.00203766,96316.0,96315.0,0.10849579]
[1740308582917,0.00203766,96316.0,96315.0,0.10549579]
[1740308583118,0.00203766,96316.0,96315.0,0.10949579]
[1740308584279,0.00203766,96316.0,96315.0,0.10749579]
[1740308584496,0.00203766,96316.0,96315.0,0.11049579]
[1740308588073,0.00203766,96316.0,96315.0,0.13160544]
[1740308591372,0.0017004,96319.0,96315.0,0.13160544]
[1740308591550,0.0017004,96319.0,96315.0,0.11049579]
[1740308591968,0.0017004,96319.0,96315.0,0.11174158]
[1740308592363,0.0017004,96319.0,96315.0,0.10774158]
[1740308592568,0.0017004,96319.0,96317.0,0.0813]
[1740308592795,0.0017004,96319.0,96318.0,0.10389139]
[1740308592999,0.0017004,96319.0,96318.0,0.42759139]
[1740308593197,0.0017004,96319.0,96318.0,0.42634569]
[1740308594549,0.0017004,96319.0,96318.0,0.43334569]
[1740308595502,0.0017004,96319.0,96318.0,0.43934569]
[1740308595904,0.0017004,96319.0,96318.0,0.44534569]
[1740308596273,0.0017004,96319.0,96318.0,0.43334569]
[1740308596630,0.0017004,96319.0,96318.0,0.43934569]
[1740308597038,0.0017004,96319.0,96318.0,0.43234569]
[1740308597171,0.0017004,96319.0,96318.0,0.43934569]
[1740308597956,0.0017004,96319.0,96318.0,0.46043662]
[1740308605901,0.0017004,96319.0,96318.0,0.45443662]
[1740308606104,0.0017004,96319.0,96318.0,0.44743662]
[1740308606306,0.0017004,96319.0,96318.0,0.45443662]
[1740308606641,0.0017004,96319.0,96318.0,0.46043662]
[1740308607266,0.0017004,96319.0,96318.0,0.46797747]
[1740308607463,0.0017004,96319.0,96318.0,0.47497747]
[1740308608073,0.0017004,96319.0,96318.0,0.55147747]
[1740308608270,0.0017004,96319.0,96318.0,0.55747747]
[1740308609389,0.0017004,96319.0,96318.0,0.55047747]
[1740308609601,0.0017004,96319.0,96318.0,0.54447747]
[1740308609798,0.0017004,96319.0,96318.0,0.55847747]
[1740308614534,0.0017004,96319.0,96318.0,0.55932757]
[1740308621775,0.0017004,96319.0,96318.0,0.70932757]
[1740308622313,0.0017004,96319.0,96318.0,1.09892757]
[1740308622914,0.0017004,96319.0,96318.0,1.13132693]
[1740308626077,0.0017004,96319.0,96318.0,1.13528693]
[1740308626798,0.0017004,96319.0,96318.0,1.12128693]
[1740308626939,0.0017004,96319.0,96318.0,1.12828693]